bitfinex/quotes_ETHUSD_20250803
["timestamp","ask_amount","ask_price","bid_price","bid_amount"]
[1754231560901,0.55,3478.4,3477.9,0.002]
[1754231561073,43.55,3478.1,3477.9,0.002]
[1754231561279,36.41824707,3478.1,3477.9,0.002]
[1754231561475,37.35244707,3478.1,3477.9,0.002]
[1754231562478,11.04399286,3478.1,3477.9,0.002]
[1754231562715,8.64104579,3478.1,3477.9,0.002]
[1754231564482,9.10174579,3478.1,3477.9,0.002]
[1754231565680,9.57064579,3478.1,3477.9,0.002]
[1754231566017,39.10174579,3478.1,3477.9,0.002]
[1754231566236,39.57064579,3478.1,3477.9,0.002]
[1754231566383,42.43889286,3478.1,3477.9,0.002]
[1754231566997,41.96999286,3478.1,3477.9,0.002]
[1754231567726,42.43889286,3478.1,3477.9,0.002]
[1754231569100,41.96999286,3478.1,3477.9,0.002]
[1754231569510,37.48899286,3478.1,3477.9,0.002]
[1754231569801,41.96999286,3478.1,3477.9,0.002]
[1754231570514,37.48899286,3478.1,3477.9,0.002]
[1754231570826,41.50469286,3478.1,3477.9,0.002]
[1754231571830,11.50469286,3478.1,3477.9,0.002]
[1754231572016,8.63644579,3478.1,3477.9,0.002]
[1754231574643,9.10174579,3478.1,3477.9,0.002]
[1754231574848,39.57064579,3478.1,3477.9,0.002]
[1754231576715,38.63644579,3478.1,3477.9,0.002]
[1754231576943,39.10174579,3478.1,3477.9,0.002]
[1754231577250,42.43889286,3478.1,3477.9,0.002]
[1754231577447,41.50469286,3478.1,3477.9,0.002]
[1754231577652,42.43889286,3478.1,3477.9,0.002]
[1754231579722,44.79668193,3478.1,3477.9,0.002]
[1754231579923,44.16789286,3478.1,3477.9,0.002]
[1754231580840,42.43889286,3478.1,3477.9,0.002]
[1754231581447,44.16789286,3478.1,3477.9,0.002]
[1754231581955,43.55,3477.0,3476.9,0.004]
[1754231582151,39.04634011,3477.0,3476.9,0.004]
[1754231582315,39.52224011,3477.0,3476.9,0.004]
[1754231582519,39.98984011,3477.0,3476.9,0.004]
[1754231583119,39.52224011,3477.0,3476.9,0.004]
[1754231583331,39.04634011,3477.0,3476.9,0.004]
[1754231584260,39.97674011,3477.0,3476.9,0.004]
[1754231585256,41.70574011,3477.0,3476.9,0.004]
[1754231585631,42.62252918,3477.0,3476.9,0.004]
[1754231586351,40.838,3476.5,3476.4,0.004]
[1754231586649,39.0581455,3476.5,3476.4,0.004]
[1754231586878,54.94436922,3476.5,3476.4,0.004]
[1754231587020,57.30476922,3476.5,3476.4,0.004]
[1754231587219,3.55,3476.4,3476.0,0.004]
[1754231587558,3.55,3476.0,3475.8,0.004]
[1754231587761,38.73075238,3475.9,3475.8,0.004]
[1754231588167,41.09115238,3475.9,3475.8,0.004]
[1754231588365,36.32515238,3475.9,3475.8,0.004]
[1754231588567,41.82249249,3475.9,3475.8,0.004]
[1754231588768,36.88899249,3475.9,3475.8,0.004]
[1754231588980,39.93799249,3475.9,3475.8,0.004]
[1754231589143,40.39249249,3475.9,3475.8,0.004]
[1754231589481,3.55,3475.5,3473.4,0.449]
[1754231589652,3.55,3475.1,3473.7,0.9126]
[1754231589854,0.55,3474.8,3473.8,0.9126]
[1754231590052,3.55,3474.4,3473.8,0.4636]
[1754231590253,3.55,3474.4,3472.0,3.0]
[1754231590254,3.0,3474.0,3472.0,3.0]
[1754231590457,3.0,3473.8,3472.0,3.02880184]
[1754231590659,7.489,3473.7,3472.0,3.02880184]
[1754231590845,3.0,3473.7,3473.6,1.03644956]
[1754231592643,10.0,3475.6,3473.6,1.03644956]
[1754231592848,3.0,3475.1,3473.7,0.9126]
[1754231593049,3.0,3474.7,3473.8,0.9126]
[1754231593283,43.0,3474.5,3473.9,0.9126]
[1754231593487,3.0,3474.3,3474.0,0.9126]
[1754231593672,3.0,3474.5,3474.1,0.9126]
[1754231593873,0.55,3474.2,3473.6,0.12384956]
[1754231594189,3.0,3474.0,3473.8,0.4636]
[1754231594383,7.49,3473.9,3473.8,0.4636]
[1754231594583,7.491,3473.9,3473.8,0.9126]
[1754231594887,3.0,3473.9,3473.8,0.9126]
[1754231595405,30.0,3473.7,3473.6,0.12384956]
[1754231595701,3.0,3473.7,3473.6,0.12384956]
[1754231595896,3.0,3473.7,3473.6,1.03644956]
[1754231596759,1.13721033,3474.1,3473.6,1.03644956]
[1754231596959,1.13721033,3474.1,3473.7,0.9126]
[1754231597197,1.13721033,3474.1,3474.0,0.144]
[1754231597400,1.13721033,3474.1,3474.0,1.0566]
[1754231598563,1.13721033,3474.1,3474.0,0.9126]
[1754231601469,1.13721033,3474.1,3473.8,0.144]
[1754231601722,3.0,3473.9,3473.6,0.12384956]
[1754231602009,1.61311033,3474.1,3473.6,0.12384956]
[1754231602205,1.13721033,3474.1,3473.7,0.9126]
[1754231603322,3.0,3473.8,3473.6,0.12384956]
[1754231603687,40.0,3473.9,3473.6,0.12384956]
[1754231604008,34.0259,3473.7,3473.6,0.12384956]
[1754231604313,34.44065238,3473.7,3473.6,0.12384956]
[1754231604517,37.76339945,3473.7,3473.6,0.12384956]
[1754231604812,38.11404257,3473.7,3473.6,0.12384956]
[1754231605223,39.84304257,3473.7,3471.6,0.144]
[1754231605518,40.55,3473.3,3473.2,0.002]
[1754231605809,38.069,3473.3,3473.2,0.002]
[1754231606011,40.0274011,3473.3,3473.2,0.002]
[1754231606215,40.87333273,3473.3,3473.2,0.002]
[1754231606616,41.25691853,3473.3,3473.2,0.002]
[1754231606773,43.16802956,3473.3,3473.2,0.002]
[1754231606978,43.45602956,3473.3,3473.2,0.002]
[1754231607207,3.55,3473.2,3470.7,1.0]
[1754231607415,0.55,3472.5,3470.8,0.9126]
[1754231607615,30.0,3472.8,3470.9,1.13267097]
[1754231607916,3.98753553,3473.1,3471.0,0.9126]
[1754231608103,1.11928846,3473.1,3471.5,20.33619128]
[1754231608305,1.11928846,3473.1,3471.6,4.49140516]
[1754231608509,4.545,3474.4,3471.8,0.55]
[1754231608683,30.0,3474.3,3472.1,20.33619128]
[1754231608881,30.0,3474.3,3472.2,0.9273]
[1754231609232,10.0,3474.8,3472.7,20.33619128]
[1754231609537,0.99247717,3475.0,3473.3,20.33619128]
[1754231609681,0.99247717,3475.0,3473.4,0.02879023]
[1754231609981,0.99247717,3475.0,3473.6,0.55]
[1754231610182,0.99247717,3475.0,3474.0,0.55]
[1754231610387,0.001,3476.2,3474.5,20.33619128]
[1754231610616,0.001,3476.2,3474.6,1.45584256]
[1754231610836,0.001,3476.2,3474.7,4.57877946]
[1754231611015,0.001,3476.2,3474.8,4.552]
[1754231611218,0.001,3476.2,3474.8,4.9917]
[1754231611417,0.001,3476.2,3474.9,5.4793]
[1754231611604,0.001,3476.2,3475.0,0.54793]
[1754231611805,0.001,3476.2,3475.1,4.552]
[1754231612039,0.001,3476.2,3475.2,4.57877532]
[1754231612239,0.001,3476.2,3475.2,5.50607532]
[1754231612560,0.001,3476.2,3475.1,0.55]
[1754231612561,0.001,3476.2,3475.3,5.4813]
[1754231612703,0.001,3476.2,3475.4,0.02877366]
[1754231612904,0.001,3476.2,3475.5,0.55100737]
[1754231613131,0.001,3476.2,3475.4,0.9273]
[1754231613334,0.001,3476.2,3475.4,0.4397]
[1754231613539,0.001,3476.2,3475.5,0.51637283]
[1754231613941,0.001,3476.2,3475.6,0.4397]
[1754231614144,0.001,3476.2,3475.7,0.02877118]
[1754231614479,0.001,3476.2,3475.8,0.02877035]
[1754231614772,0.001,3476.2,3475.8,0.4397]
[1754231614906,0.001,3476.2,3476.0,3.0]
[1754231615105,0.001,3476.2,3476.1,0.87987491]
[1754231615306,0.001,3476.2,3476.1,1.51147491]
[1754231615538,0.001,3476.2,3476.1,0.4876]
[1754231616463,30.0,3476.1,3475.3,0.6316]
[1754231616920,30.0,3476.1,3475.3,1.19483]
[1754231617253,3.0,3476.0,3475.3,0.4876]
[1754231617407,0.9454,3476.1,3475.1,0.144]
[1754231617961,3.0,3476.0,3475.1,0.5837]
[1754231618122,0.001,3476.2,3475.2,0.4876]
[1754231618536,0.001,3476.2,3475.3,0.4397]
[1754231618761,0.001,3476.2,3475.5,0.144]
[1754231619659,0.001,3476.2,3475.6,0.9273]
[1754231619823,0.001,3476.2,3475.6,1.0713]
[1754231620024,0.001,3476.2,3475.6,0.6316]
[1754231621328,0.001,3476.2,3475.7,0.51896]
[1754231621739,0.001,3476.2,3475.7,1.00656]
[1754231622031,0.001,3476.2,3475.7,0.4876]
[1754231622173,0.001,3476.2,3475.8,0.9273]
[1754231622671,0.001,3476.2,3475.9,0.4876]
[1754231623060,0.001,3476.2,3475.6,0.144]
[1754231624458,0.001,3476.2,3475.6,3.144]
[1754231624646,0.001,3476.2,3475.6,4.00673]
[1754231625288,0.001,3476.2,3475.6,1.00673]
[1754231625583,0.001,3476.2,3475.7,0.4876]
[1754231626083,0.001,3476.2,3475.8,3.4876]
[1754231626592,0.001,3476.2,3475.9,0.9273]
[1754231626750,0.001,3476.2,3475.9,1.0713]
[1754231627082,0.001,3476.2,3476.0,0.9273]
[1754231627284,0.001,3476.2,3476.0,0.4876]
[1754231627796,0.001,3476.2,3476.1,0.4876]
[1754231628565,0.001,3476.2,3475.8,4.549]
[1754231628764,0.001,3476.2,3475.9,0.4876]
[1754231628965,0.001,3476.2,3475.9,1.48933]
[1754231629171,0.001,3476.2,3475.9,1.19363]
[1754231629514,0.001,3476.2,3476.0,0.95606869]
[1754231629681,0.001,3476.2,3476.1,0.144]
[1754231629856,0.001,3476.2,3476.1,1.10006787]
[1754231630057,0.001,3476.2,3476.1,1.69240979]
[1754231633558,0.001,3476.2,3476.1,1.72117766]
[1754231634468,0.001,3476.2,3476.1,2.27117766]
[1754231635576,0.001,3476.6,3476.2,0.55]
[1754231635768,0.001,3476.6,3476.5,23.85491587]
[1754231635964,0.001,3476.6,3476.5,26.57393006]
[1754231636179,1.54768568,3478.2,3476.6,3.0]
[1754231636508,1.54768568,3478.2,3476.7,5.4653]
[1754231636721,1.54768568,3478.2,3477.5,0.144]
[1754231637064,1.54768568,3478.2,3477.6,4.537]
[1754231637508,1.07068568,3478.2,3477.6,5.0246]
[1754231637807,0.477,3478.5,3477.6,5.54146]
[1754231638192,0.4684,3478.6,3477.9,0.144]
[1754231638609,0.9329,3478.6,3477.9,0.144]
[1754231642188,0.55,3479.4,3478.0,0.02875215]
[1754231642387,0.9118,3478.9,3478.1,4.53]
[1754231642589,0.9118,3478.9,3478.3,0.144]
[1754231643199,0.001,3479.7,3478.3,0.144]
[1754231643402,0.9118,3479.6,3478.3,0.144]
[1754231643600,3.0,3479.4,3478.4,4.527]
[1754231643779,3.0,3479.2,3478.4,4.527]
[1754231643985,3.78004707,3479.3,3478.4,4.527]
[1754231643986,0.9118,3479.1,3478.4,4.527]
[1754231644186,0.9118,3479.0,3478.4,4.527]
[1754231644390,0.9118,3479.0,3477.1,3.0]
[1754231644391,0.9118,3478.9,3478.3,4.527]
[1754231644575,40.9118,3478.8,3477.7,0.144]
[1754231644781,3.0,3478.5,3477.7,4.528]
[1754231644975,0.9118,3478.4,3477.7,4.528]
[1754231645181,0.55,3479.2,3477.7,4.528]
[1754231645182,0.9118,3478.3,3477.7,4.528]
[1754231645391,3.0,3479.6,3477.7,4.528]
[1754231645611,10.001,3479.7,3477.7,4.528]
[1754231645612,3.55,3479.2,3477.8,4.528]
[1754231645914,30.0,3478.9,3477.9,4.529]
[1754231646097,0.9118,3478.8,3477.9,4.529]
[1754231646298,0.4473,3478.7,3477.9,4.529]
[1754231646487,0.4645,3478.6,3477.9,4.529]
[1754231646893,0.4473,3478.5,3477.9,4.529]
[1754231647298,0.4645,3478.4,3477.7,0.144]
[1754231647678,0.4645,3478.4,3477.4,0.4622]
[1754231647879,0.4473,3478.3,3477.6,0.144]
[1754231648112,0.4473,3478.3,3477.1,0.4622]
[1754231648312,0.4473,3478.3,3477.3,0.144]
[1754231648489,0.4645,3478.2,3477.3,0.144]
[1754231648913,0.4645,3478.2,3477.4,0.4622]
[1754231649117,0.4645,3478.2,3477.5,0.144]
[1754231649530,30.4473,3478.1,3477.5,0.144]
[1754231649683,3.33274707,3478.0,3477.5,0.144]
[1754231650042,30.0,3477.9,3476.5,3.4622]
[1754231650330,0.9118,3477.8,3476.9,0.144]
[1754231650632,0.9118,3477.7,3476.9,0.144]
[1754231650781,0.9118,3477.7,3477.1,0.144]
[1754231651395,0.9118,3478.1,3477.2,0.4622]
[1754231651598,0.9118,3478.5,3477.6,0.144]
[1754231651801,0.9128,3478.8,3477.9,0.144]
[1754231652093,0.9128,3478.8,3478.0,0.4622]
[1754231652248,0.9128,3478.8,3478.1,0.144]
[1754231652749,0.001,3478.8,3478.2,0.4909505]
[1754231652950,0.001,3478.8,3478.6,0.144]
[1754231653402,0.9118,3478.7,3477.7,0.4622]
[1754231653607,30.9118,3478.6,3477.3,0.934]
[1754231653804,30.0,3478.4,3477.3,4.529]
[1754231654048,0.9118,3478.3,3477.3,4.673]
[1754231654409,0.9118,3478.2,3477.3,4.673]
[1754231655045,0.9118,3478.2,3477.3,0.144]
[1754231655252,0.9118,3478.1,3477.4,4.528]
[1754231656346,0.9118,3478.0,3477.4,4.526]
[1754231656543,3.0,3478.7,3477.4,4.526]
[1754231656747,3.0,3478.3,3477.6,0.144]
[1754231657051,30.0,3478.1,3477.6,0.144]
[1754231657561,0.9118,3478.0,3477.0,0.4622]
[1754231657729,0.9118,3478.0,3477.1,4.668]
[1754231657730,0.4645,3477.9,3477.1,4.668]
[1754231657933,0.4645,3477.9,3477.1,0.144]
[1754231657934,30.0,3477.8,3477.1,0.144]
[1754231658134,0.9118,3477.7,3477.1,4.668]
[1754231659763,3.0,3478.1,3477.1,4.668]
[1754231659961,0.4645,3478.3,3477.5,0.144]
[1754231660843,0.9983,3478.8,3477.6,0.49095546]
[1754231661161,0.64958,3478.8,3477.8,0.144]
[1754231661356,0.4483,3478.8,3477.9,0.4622]
[1754231661556,0.001,3478.8,3477.9,0.4622]
[1754231662143,0.001,3478.8,3478.0,0.144]
[1754231663061,0.001,3478.8,3478.2,0.144]
[1754231665231,0.4483,3478.8,3478.2,4.663]
[1754231665942,0.4483,3478.8,3478.2,4.661]
[1754231666325,0.4645,3478.7,3477.5,0.4622]
[1754231666549,3.0,3478.5,3477.6,4.515]
[1754231666734,30.0,3478.4,3477.6,4.515]
[1754231666942,30.0,3478.3,3477.6,4.515]
[1754231667143,0.9118,3478.3,3477.6,4.515]
[1754231667349,0.4645,3478.2,3477.6,4.515]
[1754231667545,0.9118,3478.2,3477.3,0.144]
[1754231667733,0.9118,3478.2,3477.4,4.516]
[1754231668136,30.0,3478.7,3477.4,4.516]
[1754231668326,30.0,3478.7,3477.0,0.4718]
[1754231668327,3.55,3478.1,3477.1,0.144]
[1754231668522,3.0,3477.9,3476.9,4.518]
[1754231668726,0.9118,3478.6,3476.9,4.518]
[1754231668727,0.9075,3477.8,3476.9,4.518]
[1754231669360,0.9075,3477.8,3477.0,0.4804]
[1754231669569,3.0,3478.5,3477.0,1.04198613]
[1754231669775,1.4575,3478.4,3477.2,0.144]
[1754231669941,3.0,3478.2,3477.2,0.144]
[1754231670141,3.0,3478.2,3477.3,0.4804]
[1754231670756,0.55,3478.5,3477.2,0.144]
[1754231670973,0.55,3478.5,3476.6,0.002]
[1754231670974,3.0,3477.9,3477.0,4.517]
[1754231671142,0.9075,3477.8,3477.0,4.517]
[1754231673877,3.001,3478.3,3477.1,0.4804]
[1754231673878,0.477,3478.0,3477.1,0.4804]
[1754231674792,0.4305,3477.9,3477.1,0.4804]
[1754231675276,0.477,3477.8,3477.0,0.144]
[1754231675476,0.477,3477.8,3477.1,0.4804]
[1754231675865,0.4305,3477.9,3477.1,0.4804]
[1754231676383,0.4315,3478.3,3477.2,0.02875877]
[1754231676588,0.4315,3478.3,3477.3,0.9251]
[1754231676754,0.4315,3478.3,3477.4,0.4804]
[1754231676953,0.4315,3478.3,3477.5,0.4447]
[1754231676954,0.001,3478.3,3477.5,0.4447]
[1754231677149,0.001,3478.3,3477.6,0.4804]
[1754231677473,0.001,3478.3,3477.6,5.1334]
[1754231677664,0.001,3478.3,3477.6,5.69121]
[1754231677855,0.001,3478.3,3477.7,0.9251]
[1754231678180,0.001,3478.3,3478.0,0.144]
[1754231678596,0.001,3478.3,3478.1,0.4804]
[1754231678796,0.001,3478.3,3478.2,0.144]
[1754231679002,0.001,3478.3,3478.2,1.0691]
[1754231680277,0.001,3478.3,3478.2,0.6244]
[1754231680607,0.001,3478.3,3477.6,0.4804]
[1754231680775,0.9085,3478.3,3477.6,5.1384]
[1754231680982,0.9075,3478.2,3477.6,5.1384]
[1754231681794,0.001,3478.3,3477.7,0.9251]
[1754231681993,0.001,3478.3,3477.8,0.1727538]
[1754231682302,0.001,3478.3,3477.6,5.51701]
[1754231682500,0.001,3478.3,3478.0,0.144]
[1754231682863,0.001,3478.3,3478.1,0.4804]
[1754231683104,0.001,3478.3,3478.1,0.9251]
[1754231683320,0.001,3478.3,3478.2,0.5887]
[1754231683520,0.001,3478.3,3478.2,5.5801]
[1754231683669,0.001,3478.3,3478.2,6.13811]
[1754231685680,0.001,3478.3,3478.2,6.68811]
[1754231686124,0.001,3478.3,3478.2,9.68811]
[1754231686600,0.001,3478.8,3478.6,20.30491587]
[1754231686930,0.001,3478.8,3478.7,8.23374637]
[1754231687132,0.001,3478.8,3478.7,11.99834707]
[1754231687630,0.001,3479.2,3478.9,0.55]
[1754231688333,0.001,3479.2,3479.1,0.694]
[1754231688494,0.001,3479.2,3479.1,8.204]
[1754231688691,0.001,3479.2,3479.1,9.22451939]
[1754231688886,0.001,3479.2,3479.1,9.70491939]
[1754231690393,0.001,3479.2,3479.1,5.22681939]
[1754231690628,0.001,3479.2,3479.1,0.144]
[1754231690801,0.9085,3479.2,3479.1,4.656]
[1754231691138,0.9085,3479.2,3479.1,0.144]
[1754231691301,0.9085,3479.2,3479.1,4.511]
[1754231691491,0.001,3479.2,3479.1,4.511]
[1754231692730,0.9085,3479.2,3479.1,4.511]
[1754231694048,0.001,3479.2,3479.1,4.511]
[1754231694902,0.001,3479.2,3479.1,4.9914]
[1754231696754,0.9085,3479.2,3478.3,0.4804]
[1754231697047,0.477,3479.1,3478.7,0.144]
[1754231697201,0.9075,3479.1,3478.8,4.51]
[1754231697399,0.4305,3479.0,3478.8,4.51]
[1754231697601,0.9075,3479.0,3478.8,4.51]
[1754231697836,0.9075,3478.9,3478.8,4.51]
[1754231698397,0.001,3479.2,3478.8,4.9754]
[1754231698604,0.001,3479.2,3478.8,5.4558]
[1754231699702,0.001,3479.2,3479.0,0.144]
[1754231700997,0.9307,3479.2,3479.0,0.144]
[1754231701397,0.9307,3479.2,3478.4,0.448311]
[1754231701398,0.9297,3479.1,3478.4,0.448311]
[1754231701610,0.9297,3479.1,3478.8,0.144]
[1754231701935,0.9297,3479.0,3478.9,4.504]
[1754231702511,0.001,3479.2,3478.9,4.504]
[1754231702837,0.9307,3479.2,3478.9,4.504]
[1754231703226,0.001,3479.2,3478.9,4.504]
[1754231703538,0.9297,3479.1,3478.9,4.504]
[1754231703914,0.001,3479.2,3478.9,4.504]
[1754231704903,0.001,3479.2,3479.0,0.4798]
[1754231705134,0.001,3479.2,3479.0,1.0637]
[1754231705303,0.001,3479.2,3479.0,0.6238]
[1754231705727,0.001,3479.2,3479.1,0.4798]
[1754231706449,0.001,3479.2,3479.1,0.9197]
[1754231706612,0.001,3479.2,3479.1,1.52295]
[1754231706939,0.001,3479.2,3479.1,1.55169306]
[1754231707156,0.001,3479.2,3479.1,1.11179306]
[1754231707357,0.001,3479.2,3479.1,4.498]
[1754231707502,0.001,3479.2,3479.1,4.9778]
[1754231707704,0.001,3479.2,3479.1,5.4177]
[1754231708202,0.001,3479.2,3479.1,8.44644306]
[1754231708416,0.001,3479.2,3479.1,8.4177]
[1754231708618,0.001,3479.2,3479.1,9.27387]
[1754231708934,0.001,3479.2,3479.1,9.82387]
[1754231715252,0.001,3479.2,3479.1,5.32587]
[1754231715464,0.001,3479.2,3479.1,9.81387]
[1754231717968,0.001,3479.2,3479.1,5.32587]
[1754231718351,0.001,3479.2,3479.1,9.81387]
[1754231719998,0.001,3479.2,3479.1,5.32587]
[1754231720285,0.001,3479.2,3479.1,9.81387]
[1754231721781,0.001,3479.2,3479.1,5.32587]
[1754231721968,0.001,3479.2,3479.1,9.81387]
[1754231722280,0.001,3479.6,3479.2,3.55]
[1754231722454,0.001,3479.6,3479.4,3.55]
[1754231722661,0.001,3479.6,3479.5,7.488]
[1754231723202,0.001,3479.6,3479.5,8.5517]
[1754231723914,0.001,3479.6,3479.5,7.631]
[1754231724115,0.4385,3479.6,3479.5,4.487]
[1754231724314,0.9307,3479.6,3479.5,4.487]
[1754231725310,0.001,3479.6,3479.5,4.9357]
[1754231725470,0.9307,3479.6,3478.7,1.0298]
[1754231725699,0.9297,3479.5,3477.9,20.30491587]
[1754231726000,0.9297,3479.4,3478.3,4.488]
[1754231726178,0.9297,3479.3,3478.4,4.487]
[1754231726523,0.4922,3479.2,3478.5,0.02874802]
[1754231726824,0.9297,3479.2,3478.6,4.9385748]
[1754231726971,0.001,3479.6,3478.6,4.9385748]
[1754231727172,0.9297,3479.5,3478.6,4.9385748]
[1754231727406,0.9297,3479.4,3478.6,4.9385748]
[1754231727604,0.9297,3479.3,3478.6,0.4515748]
[1754231727810,0.9297,3479.2,3478.7,4.487]
[1754231728171,0.9297,3479.1,3478.7,4.487]
[1754231728374,0.9297,3479.0,3478.7,4.487]
[1754231728575,0.9297,3478.9,3478.7,4.487]
[1754231728890,0.001,3479.6,3478.8,4.487]
[1754231729088,0.001,3479.6,3478.9,4.487]
[1754231729500,0.9237,3479.5,3478.9,4.487]
[1754231729772,0.9237,3479.4,3478.9,4.487]
[1754231729980,0.9237,3479.3,3478.9,4.9357]
[1754231730196,0.9237,3479.3,3478.9,4.487]
[1754231730410,0.9237,3479.2,3478.9,4.487]
[1754231730696,0.9237,3479.1,3478.2,3.0]
[1754231730869,0.9237,3479.0,3478.3,4.488]
[1754231732526,0.9237,3479.0,3478.4,0.02874885]
[1754231732688,0.9237,3479.3,3478.4,0.02874885]
[1754231732894,0.9237,3479.3,3478.5,0.4696]
[1754231733088,0.9247,3479.6,3478.6,0.02874719]
[1754231733299,0.9247,3479.6,3478.7,4.488]
[1754231733505,0.9247,3479.6,3478.8,0.49661472]
[1754231733728,0.001,3479.6,3478.9,0.49834471]
[1754231733906,0.001,3479.6,3479.0,0.4494]
[1754231734111,0.001,3479.6,3479.5,0.144]
[1754231734313,0.001,3479.6,3479.5,4.632]
[1754231734526,0.001,3479.6,3479.5,5.56767422]
[1754231734695,0.001,3479.6,3479.5,6.01707422]
[1754231734895,0.001,3479.6,3479.5,1.07967422]
[1754231735092,0.001,3479.6,3479.5,4.632]
[1754231735327,0.001,3479.6,3479.5,0.144]
[1754231735536,0.001,3479.6,3479.5,4.632]
[1754231736696,0.001,3479.6,3479.5,5.1016]
[1754231737932,0.001,3479.6,3479.5,4.632]
[1754231738128,0.001,3479.6,3479.5,5.1871]
[1754231738512,0.9247,3479.6,3479.5,4.632]
[1754231738701,0.001,3479.6,3479.5,4.632]
[1754231739716,0.001,3479.6,3479.5,5.1016]
[1754231740519,0.001,3479.6,3479.5,4.632]
[1754231740716,0.001,3479.6,3479.5,5.14216]
[1754231740920,0.001,3479.6,3479.5,5.61176]
[1754231741637,0.001,3479.6,3479.5,0.144]
[1754231741800,0.9247,3479.6,3479.5,0.144]
[1754231742006,0.9247,3479.6,3479.5,4.488]
[1754231744837,0.001,3479.6,3479.5,4.488]
[1754231745003,0.9247,3479.6,3479.5,4.488]
[1754231747810,0.9247,3479.6,3479.4,0.144]
[1754231748045,0.001,3479.6,3479.5,4.488]
[1754231748610,0.001,3479.6,3479.4,0.144]
[1754231748611,0.9247,3479.6,3479.4,0.144]
[1754231748942,0.9247,3479.6,3479.5,5.1016]
[1754231748943,0.001,3479.6,3479.5,5.1016]
[1754231749145,0.001,3479.6,3479.5,6.06116]
[1754231750020,0.001,3479.6,3479.5,5.14216]
[1754231750211,0.001,3479.6,3479.5,5.61176]
[1754231750959,0.001,3479.6,3479.5,6.06116]
[1754231754826,0.001,3479.6,3479.5,6.61116]
[1754231756967,0.001,3479.6,3479.5,1.12376]
[1754231757118,0.001,3479.6,3479.5,4.631]
[1754231758536,0.4568,3479.6,3479.5,4.631]
[1754231758755,0.9193,3479.6,3479.5,4.631]
[1754231759425,0.9193,3479.6,3479.5,0.144]
[1754231759628,0.9193,3479.6,3479.5,4.631]
[1754231760133,0.9193,3479.6,3479.5,0.144]
[1754231760337,0.9193,3479.6,3479.5,4.631]
[1754231760631,0.001,3479.6,3479.5,4.631]
[1754231760944,0.001,3479.6,3479.5,5.0941]
[1754231762239,0.001,3479.6,3479.5,4.631]
[1754231763478,0.001,3479.6,3479.5,0.144]
[1754231763640,0.001,3479.6,3479.5,5.1113]
[1754231764180,0.001,3479.6,3479.5,4.631]
[1754231765460,0.001,3479.6,3479.5,5.1113]
[1754231765666,0.001,3479.6,3479.5,5.62243]
[1754231766361,0.001,3479.6,3479.5,5.14113]
[1754231767687,0.001,3479.6,3479.5,21.83656979]
[1754231767853,0.001,3479.6,3479.5,22.26716979]
[1754231768255,0.001,3479.6,3479.5,21.83656979]
[1754231769479,0.001,3479.6,3479.5,22.26716979]
[1754231771686,0.001,3479.6,3479.5,25.26716979]
[1754231772750,0.001,3479.6,3479.5,25.81716979]
[1754231779998,0.001,3479.6,3479.5,20.42026979]
[1754231780292,0.001,3479.6,3479.5,24.90526979]
[1754231780498,0.001,3479.6,3479.5,25.38556979]
[1754231780673,0.001,3479.6,3479.5,25.81616979]
[1754231783013,0.001,3479.6,3479.5,8.13913]
[1754231783167,0.9426,3479.6,3479.5,7.628]
[1754231783914,0.9426,3479.6,3479.5,3.144]
[1754231784071,0.9426,3479.6,3479.5,7.628]
[1754231784599,0.9426,3479.6,3479.5,4.628]
[1754231785996,0.9426,3479.6,3479.5,0.144]
[1754231786218,0.9426,3479.6,3479.5,4.628]
[1754231788381,0.4635,3479.6,3479.5,5.0908]
[1754231788581,0.9426,3479.6,3479.5,5.0908]
[1754231791171,0.4635,3479.6,3479.5,5.0908]
[1754231792511,0.9326,3479.6,3479.5,5.0908]
[1754231792689,0.9326,3479.6,3479.5,0.6068]
[1754231793006,0.9326,3479.6,3479.5,5.0898]
[1754231793707,0.001,3479.6,3479.5,5.0898]
[1754231794284,0.001,3479.6,3479.5,5.11853976]
[1754231794490,0.001,3479.6,3479.5,5.0898]
[1754231794708,0.001,3479.6,3479.5,0.63553976]
[1754231795010,0.001,3479.6,3479.5,5.5476]
[1754231795378,0.001,3479.6,3479.5,5.0898]
[1754231801428,0.001,3479.6,3479.5,5.5476]
[1754231803900,0.001,3479.6,3479.5,8.5476]
[1754231804226,0.001,3479.6,3479.5,8.982]
[1754231804434,0.001,3479.6,3479.5,9.532]
[1754231805910,0.001,3479.6,3479.5,9.0976]
[1754231807031,0.001,3479.6,3479.5,9.0956]
[1754231807815,0.001,3479.6,3479.5,4.6146]